[Event "14th Karen Asrian Memorial 2024"]
[Site "Yerevan"]
[Date "2024.04.26"]
[Round "3.8"]
[White "Atoyan, Alberto"]
[Black "Sanikidze, Tornike"]
[Result "0-1"]
[ECO "B12"]
[WhiteElo "2243"]
[BlackElo "2453"]
[Annotator "TA"]
[PlyCount "58"]
[EventDate "2024.04.24"]
[EventType "swiss"]
[EventCountry "ARM"]
[SourceTitle "playchess.com"]
[Source "ChessBase"]
[SourceQuality "1"]
[TimeControl "40/5400+30:1800+30"]

{[%evp 9,58,48,76,71,84,64,67,52,50,55,54,44,117,85,107,61,79,64,62,45,45,10,3,0,6,0,17,18,20,18,16,0,0,0,0,-140,-143,-141,-146,-222,-72,-508,-537,-889,-880,-29979,-29980,-29980,-29981,-29977,-5339]} 1. d4 {[%emt 0:00:05]} d6 {[%emt 0:00:41]} 2. e4 {[%emt 0:00:30]} c6 {[%emt 0:00:07]} 3. Nc3 {[%emt 0:00:14]} Qc7 {[%emt 0:00:06]} 4. f4 {[%emt 0:00:12]} e5 {[%emt 0:00:21]} 5. Nf3 {[%emt 0:00:18]} Bg4 {[%emt 0:00:29]} 6. Be3 {[%emt 0:01:50]} (6. fxe5 dxe5 7. Bc4 (7. dxe5 Nd7 $11) 7... exd4 8. Qxd4 Nd7 $14) 6... Be7 {[%emt 0:03:12]} 7. Be2 {[%emt 0:05:23]} (7. fxe5 dxe5 8. Qd2 (8. dxe5 Nd7 $11) 8... Nd7 $11) 7... Nd7 {[%emt 0:00:41]} 8. Qd2 {[%emt 0:03:12] White is slightly better.} Ngf6 {[%emt 0:04:12]} 9. h3 {[%emt 0:06:39]} Bxf3 {[%emt 0:03:36]} 10. Bxf3 {[%emt 0:00:05]} O-O-O {[%emt 0:00:45]} ({Black should play} 10... O-O $14) 11. O-O-O {[%emt 0:06:22]} Nb6 {[%emt 0:10:03]} 12. Qe2 {[%emt 0:03:21] Wards off Nc4} (12. b3 $16) 12... Kb8 {[%emt 0:00:41]} 13. g4 {[%emt 0:04:51][%cal Bg2g4,Bg4g5][%mdl 32]} Rhe8 {[%emt 0:01:10]} 14. g5 {[%emt 0:06:05]} Nfd7 {[%emt 0:02:04]} 15. h4 {[%emt 0:05:14]} exd4 {[%emt 0:17:03]} 16. Bxd4 {[%emt 0:06:14][%cal Oe2f2]} d5 $1 {[%emt 0:00:34]} 17. Bxg7 {[%emt 0:11:20]} Qxf4+ {[%emt 0:01:08]} 18. Kb1 {[%emt 0:00:20]} Bf8 {[%emt 0:10:19]} 19. Bxf8 {[%emt 0:08:19]} Nxf8 {[%emt 0:00:16]} 20. Qf2 {[%emt 0:09:12]} (20. Qh2 {simplifies} Qxh2 21. Rxh2 d4 22. Ne2) 20... Nc4 $36 {[%emt 0:11:03][%mdl 2048] Black is pushing.} 21. exd5 {[%emt 0:11:48]} Re3 {[%emt 0:01:25]} 22. dxc6 {[%emt 0:05:11]} (22. Rhf1 $11 {keeps the balance.} Nxb2 23. Kxb2 Qb4+ 24. Ka1 Qxc3+ 25. Kb1) 22... Rxd1+ $17 {[%emt 0:00:36]} (22... Qxf3 $2 23. Rxd8+ Kc7 24. Qxf3 Rxf3 25. cxb7 (25. Rxf8 bxc6 26. Rh8 Rf5 $18) 25... Kxb7 26. Rxf8 $18) 23. Rxd1 {[%emt 0:01:24][%cal Oc3b5] [#] Black must now prevent Nb5!} Qxf3 {[%emt 0:01:19]} (23... Rxf3 $2 24. Nb5 $18 (24. c7+ Kc8 $18) (24. c7+ Kc8 $18)) 24. Qh2+ {[%emt 0:02:29]} (24. Qxf3 $17 Rxf3 25. cxb7 (25. Rd8+ $2 Kc7 $19) 25... Kxb7 26. Rh1) 24... Qg3 {[%emt 0:01:34]} (24... Kc8 $19 25. cxb7+ Qxb7) 25. Qh1 $2 {[%emt 0:00:28][%mdl 8192] This costs White the game.} (25. Qxg3+ $17 Rxg3 26. a3 (26. Rd8+ Kc7 $17) (26. Ne4 Re3 $17)) 25... Rxc3 $19 {[%emt 0:12:05]} 26. Rd8+ {[%emt 0:01:50]} Kc7 {[%emt 0:00:10]} 27. Rxf8 {[%emt 0:00:10]} Re3 {[%emt 0:00:42] Black mates.} 28. Rxf7+ {[%emt 0:00:08] [#]} Kb6 $1 {[%emt 0:00:12] Active counter play!} 29. Rxb7+ {[%emt 0:00:37]} Ka6 {[%emt 0:00:07] Weighted Error Value: White=1.16/Black=0.13 (very precise) .  Loses game:     	White=1     	---        Mistake:       	White=3     	Black=2      Inaccurate:     	White=3     	---        OK:         	White=3     	Black=9      Best:        	White=1     	Black=3      Strong:       	---       	Black=1} 0-1

[Event "14th Karen Asrian Memorial 2024"]
[Site "Yerevan"]
[Date "2024.04.27"]
[Round "4.1"]
[White "Shahinyan, David"]
[Black "Petrosyan, Manuel"]
[Result "0-1"]
[ECO "B21"]
[WhiteElo "2441"]
[BlackElo "2616"]
[Annotator "TA"]
[PlyCount "60"]
[EventDate "2024.04.24"]
[EventType "swiss"]
[EventCountry "ARM"]
[SourceTitle "playchess.com"]
[Source "ChessBase"]
[SourceQuality "1"]
[TimeControl "40/5400+30:1800+30"]

{[%evp 9,60,0,0,0,28,0,0,0,0,0,0,-19,0,-88,-83,-70,-75,-108,-89,-103,-104,-107,-84,-90,-67,-79,-111,-107,-90,-124,-131,-170,-128,-235,-66,-288,-263,-292,-278,-400,-350,-349,-345,-347,-344,-325,-312,-308,-303,-302,-291,-347,-344]} 1. e4 {[%emt 0:00:04]} c5 {[%emt 0:05:29]} 2. d4 {[%emt 0:03:16]} cxd4 {[%emt 0:00:33]} 3. Qxd4 {[%emt 0:00:44]} Nc6 {[%emt 0:00:36]} 4. Qd3 {[%emt 0:00:10]} Nf6 {[%emt 0:02:34]} 5. Nc3 {[%emt 0:00:27]} e6 {[%emt 0:07:22]} 6. Bf4 {[%emt 0:00:55]} d5 {[%emt 0:02:35][%cal Bd7d5,Bd5d4][%mdl 32]} 7. O-O-O {[%emt 0:18:23]} (7. exd5 {should be considered.} Nxd5 8. Nxd5 exd5 9. O-O-O) 7... d4 $11 {[%emt 0:07:37]} 8. Nb5 {[%emt 0:04:20] The position is equal.} e5 {[%emt 0:01:35]} 9. Bxe5 {[%emt 0:00:30]} Nxe5 {[%emt 0:00:20]} 10. Qg3 {[%emt 0:00:03]} Nfd7 {[%emt 0:17:31]} (10... Nxe4 $2 11. Qxe5+ Qe7 12. Nc7+ (12. Qxd4 a6 $18) 12... Kd8 13. Rxd4+ (13. Qxd4+ $2 Kxc7 14. Ne2 Qb4 $19) 13... Nd6 14. Qxe7+ Bxe7 15. Nxa8 $18) 11. f4 {[%emt 0:24:31]} (11. Nf3 $1 $11 a6 12. Nxe5 axb5 13. Bxb5 Rxa2 14. Nc4 Ra1+ 15. Kd2 Bb4+ 16. c3 dxc3+ 17. bxc3 Ra2+ (17... O-O 18. cxb4 Nf6+ 19. Kc2 $16) (17... Rxd1+ 18. Rxd1 Be7 19. Qxg7 $14) 18. Ke1 Bxc3+ 19. Qxc3) 11... a6 $17 {[%emt 0:11:30]} 12. Nxd4 {[%emt 0:00:51]} Nc6 {[%emt 0:00:04]} 13. Ngf3 {[%emt 0:00:49]} Nxd4 {[%emt 0:02:30]} 14. Nxd4 {[%emt 0:00:47]} Qc7 {[%emt 0:05:31]} 15. e5 {[%emt 0:03:47]} g6 {[%emt 0:01:48]} 16. h4 {[%emt 0:17:18]} Bh6 {[%emt 0:08:50]} 17. Kb1 {[%emt 0:03:16]} Nc5 {[%emt 0:01:31]} 18. h5 {[%emt 0:01:40]} Ne6 {[%emt 0:00:33]} 19. hxg6 {[%emt 0:00:39]} hxg6 {[%emt 0:01:05]} (19... Bxf4 $2 20. Nxe6 Bxe6 21. Qxf4 fxg6 22. Qf6 Bxa2+ 23. Kxa2 $18) 20. Qa3 {[%emt 0:01:16]} Qe7 {[%emt 0:03:00] [#] Strongly threatening ...Qxa3.} (20... Nxf4 21. Bb5+ (21. Nb5 Qe7 $11) 21... axb5 22. Qxa8 $18) 21. Qa5 {[%emt 0:03:30]} (21. Qf3 $17) 21... Bd7 $2 {[%emt 0:01:10]} (21... Nxf4 $19 {...Bg7 is the strong threat.} 22. Nf3 Ne6 23. Bb5+ (23. Bc4 $2 Bg7 $19) 23... Kf8 (23... axb5 24. Qxa8 Qc7 25. Rd3 $15)) 22. f5 $2 {[%emt 0:10:57] Now White is beyond hope.} (22. Qb6 $1 $15) 22... Nxd4 $19 {[%emt 0:06:10]} 23. Rxd4 {[%emt 0:00:01]} Bxf5 {[%emt 0:00:21] Hoping for ...Rd8.} 24. e6 {[%emt 0:00:53]} (24. Rdh4 $142 Qg5 25. Bc4) 24... Bg7 {[%emt 0:07:26]} (24... fxe6 $2 25. g4 $19) (24... Qxe6 25. Bc4 Qf6 26. Qb4 $19) 25. Rxh8+ {[%emt 0:01:33] Black has a decisive advantage.} Bxh8 {[%emt 0:00:01] A strong pair of Bishops.} 26. exf7+ {[%emt 0:00:09]} Kf8 {[%emt 0:01:30]} 27. Rd1 {[%emt 0:01:02]} Rc8 {[%emt 0:00:03] Dodges Bc4} (27... Kxf7 28. Bc4+ Kg7 29. Rh1 $19) (27... Qxf7 28. g4 Be6 (28... Bxg4 29. Qb4+ Qe7 30. Qxg4 $18) 29. Bd3) 28. Bd3 {[%emt 0:00:06]} Bxd3 {[%emt 0:00:26]} ({Weaker is} 28... Kxf7 29. Bxf5 Rc5 (29... gxf5 $2 30. Qxf5+ Qf6 31. Qd7+ Kg6 32. Rd6 $18) 30. Bxg6+ (30. Qd8 $2 Qxd8 31. Rxd8 Rxf5 $19) 30... Kxg6 31. Qd2 $17) (28... Qxf7 29. Rf1 Qf6 30. Qb4+ Qe7 31. Qf4 $19) 29. Rxd3 {[%emt 0:00:12]} Bf6 {[%emt 0:00:15][%cal Oe7e2]} 30. Qd2 {[%emt 0:00:24]} Rd8 {[%emt 0:02:26] Weighted Error Value: White=0.41/Black=0.22 (precise) .  Loses game:     	White=1     	---        Missed win:     	---       	Black=1      Mistake:       	White=4     	---        Inaccurate:     	White=2     	Black=1      OK:         	White=8     	Black=12     Best:        	White=3     	Black=2} (30... Kxf7 31. Rd7 Rd8 32. Rxe7+ Bxe7 33. Qf4+ Kg7 34. c3 $18 (34. Qe5+ Kf7 $18)) 0-1

[Event "14th Karen Asrian Memorial 2024"]
[Site "Yerevan"]
[Date "2024.04.27"]
[Round "4.2"]
[White "Ohanyan, Emin"]
[Black "Hayrapetyan, Hovik"]
[Result "1/2-1/2"]
[ECO "D38"]
[WhiteElo "2488"]
[BlackElo "2432"]
[Annotator "TA"]
[PlyCount "71"]
[EventDate "2024.04.24"]
[EventType "swiss"]
[EventCountry "ARM"]
[SourceTitle "playchess.com"]
[Source "ChessBase"]
[SourceQuality "1"]
[TimeControl "40/5400+30:1800+30"]

{[%evp 18,71,26,32,15,2,16,9,8,24,19,13,9,0,0,0,-2,0,0,0,0,6,0,0,0,9,32,10,10,0,0,0,0,0,16,12,5,22,27,27,15,0,2,0,2,0,0,0,0,0,0,0,8,5,9,7]} 1. d4 {[%emt 0:14:39]} Nf6 {[%emt 0:00:05]} 2. Nf3 {[%emt 0:00:06]} d5 {[%emt 0:00:06]} 3. c4 {[%emt 0:00:04]} e6 {[%emt 0:00:04]} 4. Nc3 {[%emt 0:00:03]} Bb4 {[%emt 0:00:12]} 5. Bg5 {[%emt 0:00:03]} h6 {[%emt 0:00:07]} 6. Bxf6 {[%emt 0:00:02]} Qxf6 {[%emt 0:00:06]} 7. e3 {[%emt 0:00:03]} O-O {[%emt 0:00:15]} 8. Rc1 {[%emt 0:00:02]} dxc4 {[%emt 0:02:00]} 9. Bxc4 {[%emt 0:00:06]} c5 {[%emt 0:00:02]} 10. O-O {[%emt 0:00:07]} (10. Qb3 {simplifies} cxd4 11. Qxb4 dxc3 12. Qxc3 Qxc3+ 13. Rxc3 Nd7 14. Ke2) 10... cxd4 {[%emt 0:00:12]} 11. Ne4 {[%emt 0:00:03]} Qe7 {[%emt 0:00:33]} 12. a3 {[%emt 0:00:18]} Ba5 {[%emt 0:00:25]} 13. Qxd4 {[%emt 0:00:06]} Rd8 {[%emt 0:02:52] Prevents Qd6.} 14. Qe5 {[%emt 0:00:05]} Bb6 {[%emt 0:08:12]} 15. g4 {[%emt 0:00:05]} Nd7 {[%emt 0:00:48]} 16. Qg3 {[%emt 0:00:05]} Nf6 {[%emt 0:00:57]} 17. Nxf6+ {[%emt 0:00:05]} gxf6 {[%emt 0:07:47]} 18. Qf4 {[%emt 0:01:12]} Kg7 {[%emt 0:03:56]} 19. Qe4 {[%emt 0:00:05]} Qd6 {[%emt 0:16:43] Prevents Rfd1} 20. Be2 {[%emt 0:05:05]} Qd5 {[%emt 0:04:06]} 21. Qb4 {[%emt 0:06:29]} Bd7 {[%emt 0:03:01][%cal Bc8d7,Bd7c6,Bc6d5][%mdl 32]} (21... Qd6 {simplifies} 22. Qxd6 Rxd6 23. Rfd1 Rxd1+ 24. Rxd1 Kf8) 22. Rfd1 {[%emt 0:07:51]} Qa5 {[%emt 0:00:03]} 23. Qe7 {[%emt 0:19:33]} (23. Qxa5 {simplifies} Bxa5 24. Nd4 Bb6 25. Bf3) 23... Bc6 {[%emt 0:01:12]} 24. b4 {[%emt 0:00:20]} Rxd1+ {[%emt 0:12:37]} 25. Rxd1 {[%emt 0:00:05]} Bd8 {[%emt 0:00:14]} 26. Qxe6 {[%emt 0:05:37]} fxe6 {[%emt 0:00:55]} (26... Qxa3 27. Qc4 Be7 28. b5 Bxf3 29. Bxf3 $18) 27. bxa5 {[%emt 0:00:06]} Bxa5 {[%emt 0:04:36]} 28. Nd4 {[%emt 0:00:15][%cal Od4c6]} Bd5 {[%emt 0:00:17] [#]} 29. e4 $1 {[%emt 0:00:19] The position is equal.} Ba2 {[%emt 0:08:18]} 30. Nb5 {[%emt 0:01:31]} Rd8 {[%emt 0:01:07] Prevents Rd7+} 31. Rxd8 {[%emt 0:00:15]} Bxd8 {[%emt 0:00:04]} 32. Nxa7 {[%emt 0:00:05]} Bb1 {[%emt 0:00:22]} 33. Bc4 {[%emt 0:01:19]} Bxe4 {[%emt 0:01:40]} 34. Bxe6 {[%emt 0:00:06]} Be7 {[%emt 0:00:11]} 35. Nb5 {[%emt 0:03:35]} Bc6 {[%emt 0:01:29]} 36. a4 {[%emt 0:00:34] An interesting draw.   Weighted Error Value: White=0.03 (flawless) /Black=0.04 (flawless) .  OK:         	White=19    	Black=13     Best:        	---       	Black=1} 1/2-1/2

[Event "14th Karen Asrian Memorial 2024"]
[Site "Yerevan"]
[Date "2024.04.27"]
[Round "4.3"]
[White "Danielyan, Vahe"]
[Black "Davtyan, Artur"]
[Result "1/2-1/2"]
[ECO "B51"]
[WhiteElo "2331"]
[BlackElo "2474"]
[Annotator "TA"]
[PlyCount "35"]
[EventDate "2024.04.24"]
[EventType "swiss"]
[EventCountry "ARM"]
[SourceTitle "playchess.com"]
[Source "ChessBase"]
[SourceQuality "1"]
[TimeControl "40/5400+30:1800+30"]

{[%evp 9,35,8,16,3,12,0,33,13,29,3,28,-2,19,16,12,0,0,0,0,0,0,0,-10,0,20,18,27,0]} 1. e4 {[%emt 0:00:03]} c5 {[%emt 0:03:03]} 2. Nf3 {[%emt 0:00:07]} d6 {[%emt 0:00:04]} 3. Bb5+ {[%emt 0:00:05]} Nd7 {[%emt 0:00:04]} 4. a4 {[%emt 0:00:22]} Ngf6 {[%emt 0:00:58]} 5. Nc3 {[%emt 0:00:07]} e6 {[%emt 0:06:22]} 6. a5 {[%emt 0:02:32]} a6 {[%emt 0:00:48]} 7. Be2 {[%emt 0:00:06]} Be7 {[%emt 0:03:11]} 8. O-O {[%emt 0:00:06] White is slightly better.} O-O {[%emt 0:00:20]} 9. d3 {[%emt 0:00:03][%cal Bd2d3,Bd3d4][%mdl 32]} d5 {[%emt 0:10:39]} 10. exd5 {[%emt 0:06:24]} Nxd5 {[%emt 0:00:34]} 11. Nxd5 {[%emt 0:07:22]} exd5 {[%emt 0:00:45]} 12. d4 {[%emt 0:00:42]} c4 {[%emt 0:00:04]} 13. b3 {[%emt 0:03:47]} cxb3 {[%emt 0:00:07]} 14. c4 {[%emt 0:01:49]} dxc4 {[%emt 0:12:19]} 15. Bxc4 {[%emt 0:00:07]} b5 {[%emt 0:00:08]} 16. axb6 {[%emt 0:00:31]} b2 {[%emt 0:08:48]} 17. Bxb2 {[%emt 0:00:27]} Nxb6 {[%emt 0:00:05]} 18. Bb3 {[%emt 0:05:01] A rather calm draw.   Weighted Error Value: White=0.09 (flawless) /Black=0.09 (flawless) .  Inaccurate:     	White=3     	Black=1      OK:         	White=4     	Black=5} 1/2-1/2

[Event "14th Karen Asrian Memorial 2024"]
[Site "Yerevan"]
[Date "2024.04.27"]
[Round "4.4"]
[White "Aleksandrov, Aleksej"]
[Black "Pranesh M"]
[Result "0-1"]
[ECO "D38"]
[WhiteElo "2438"]
[BlackElo "2538"]
[Annotator "TA"]
[PlyCount "98"]
[EventDate "2024.04.24"]
[EventType "swiss"]
[EventCountry "ARM"]
[SourceTitle "playchess.com"]
[Source "ChessBase"]
[SourceQuality "1"]
[TimeControl "40/5400+30:1800+30"]

{[%evp 22,98,1,-2,0,-10,7,-23,-5,-12,-17,-15,-26,-18,0,-22,-34,-48,-8,-47,-31,-14,0,0,0,0,0,0,0,0,0,-8,0,-30,0,-54,-59,-125,-137,-139,-128,-108,-100,-120,-122,-137,-100,-401,-380,-582,-603,-560,-465,-468,-439,-1429,-1034,-1052,-998,-784,-597,-552,-555,-541,-529,-568,-473,-856,-498,-625,-351,-29947,-29956,-29951,-29958,-29951,-29949,-29965,-29966]} 1. d4 {[%emt 0:00:02]} d5 {[%emt 0:00:06]} 2. c4 {[%emt 0:00:06]} e6 {[%emt 0:00:06]} 3. Nc3 {[%emt 0:00:06]} Nf6 {[%emt 0:00:11]} 4. cxd5 {[%emt 0:03:05]} exd5 {[%emt 0:00:06]} 5. Bg5 {[%emt 0:00:04]} Bb4 {[%emt 0:00:09]} 6. e3 {[%emt 0:06:16]} h6 {[%emt 0:00:08]} 7. Bxf6 {[%emt 0:00:07]} Qxf6 {[%emt 0:00:05]} 8. Qa4+ {[%emt 0:02:34]} Nc6 {[%emt 0:00:06]} 9. Nf3 {[%emt 0:00:32]} O-O {[%emt 0:00:25]} 10. Be2 {[%emt 0:00:10]} a6 {[%emt 0:01:09]} 11. O-O {[%emt 0:06:10]} Be6 {[%emt 0:00:04]} 12. Rfc1 {[%emt 0:00:04]} Bd6 {[%emt 0:00:25]} 13. Qd1 {[%emt 0:03:19]} Rae8 {[%emt 0:00:08]} 14. a3 {[%emt 0:04:47]} Nd8 {[%emt 0:08:35] Black has an edge.} 15. b4 {[%emt 0:04:37]} c6 {[%emt 0:01:03]} 16. Na4 $1 {[%emt 0:00:04]} g5 {[%emt 0:01:42]} 17. Nc5 {[%emt 0:00:46]} Bc8 {[%emt 0:03:57]} 18. g3 {[%emt 0:02:28]} Qg7 {[%emt 0:00:39]} 19. Nd3 {[%emt 0:01:47]} Bf5 {[%emt 0:12:44]} 20. Nc5 {[%emt 0:08:24]} Re7 {[%emt 0:03:10]} 21. a4 {[%emt 0:05:36]} Bg6 {[%emt 0:03:20]} 22. b5 {[%emt 0:04:41]} axb5 {[%emt 0:02:39]} 23. axb5 {[%emt 0:02:22]} f5 {[%emt 0:00:53]} 24. bxc6 {[%emt 0:06:24]} bxc6 {[%emt 0:00:06]} 25. Ne5 {[%emt 0:02:05]} Bxe5 {[%emt 0:02:14]} 26. dxe5 {[%emt 0:00:05]} Rxe5 {[%emt 0:06:53]} 27. Bd3 {[%emt 0:05:42]} Re7 {[%emt 0:03:35]} 28. Qc2 {[%emt 0:02:04]} ({White should play} 28. Ra8 $11) 28... Nf7 $1 $15 {[%emt 0:02:59]} 29. Bxf5 {[%emt 0:06:03]} (29. Nb3 $15) 29... Bxf5 $17 {[%emt 0:00:06]} 30. Qxf5 {[%emt 0:00:12]} Ne5 {[%emt 0:00:06]} 31. Qc2 {[%emt 0:00:12] [#]} Qf7 $1 {[%emt 0:01:49] ...Qh5 would now be deadly. Black is more active.} 32. h3 {[%emt 0:04:49] [#]} h5 $1 {[%emt 0:04:57] White must now prevent ...h4.} 33. Ra2 {[%emt 0:06:51]} d4 {[%emt 0:06:48]} 34. exd4 $2 {[%emt 0:00:08][%mdl 8192] This move loses the game for White.} (34. Ra3 $17 {is tougher.}) 34... Nf3+ $19 {[%emt 0:00:04]} 35. Kh1 {[%emt 0:00:09]} (35. Kf1 $142 Kg7 (35... Nxd4 36. Qc4 $11) 36. Qb3) 35... Nxd4 {[%emt 0:01:08]} 36. Qb1 {[%emt 0:04:12]} Ne2 {[%emt 0:03:26]} 37. Rxe2 {[%emt 0:03:07]} Rxe2 {[%emt 0:00:08]} 38. Nd3 {[%emt 0:00:48]} (38. Rf1 $142) 38... Rd2 {[%emt 0:01:08] Threatens to win with ...Qd5+.} 39. Ne1 {[%emt 0:02:11]} Rxf2 {[%emt 0:00:51]} 40. Ng2 {[%emt 0:00:00]} Rf1+ {[%emt 0:00:00]} 41. Kh2 {[%emt 0:00:09]} Rxc1 {[%emt 0:01:33]} 42. Qxc1 {[%emt 0:00:04][%mdl 4096] Endgame. KQR-KQN} Qd5 {[%emt 0:00:08]} 43. Qc2 {[%emt 0:00:15] Prevents Rf2} Rf6 {[%emt 0:00:18] Repels Qg6+} 44. h4 {[%emt 0:00:27]} (44. Qb2 $142 Rf3 45. Qb8+ Rf8 46. Qb6) 44... gxh4 {[%emt 0:00:11]} 45. Nxh4 {[%emt 0:00:03]} Qf7 {[%emt 0:01:25] ( -> ...Rf2+)} 46. Qc5 {[%emt 0:04:26]} (46. Ng2 $19) 46... Rf2+ {[%emt 0:00:47] Black mates.} 47. Kg1 {[%emt 0:00:07]} Rf1+ {[%emt 0:00:19]} 48. Kg2 {[%emt 0:00:05]} Rd1 {[%emt 0:00:16]} 49. Qg5+ {[%emt 0:02:23]} Kh7 {[%emt 0:00:44] Weighted Error Value: White=0.72/Black=0.39.  Loses game:     	White=1     	---        Mistake:       	White=6     	---        Inaccurate:     	White=3     	Black=2      OK:         	White=10    	Black=7      Best:        	White=1     	Black=4      Strong:       	White=1     	Black=3} 0-1